[Event "14th Margaryan Memorial-GM 2024"]
[Site "Yerevan"]
[Date "2024.01.16"]
[Round "9.4"]
[White "Davtyan, Arsen"]
[Black "Shahinyan, David"]
[Result "1-0"]
[ECO "E01"]
[WhiteElo "2392"]
[BlackElo "2436"]
[Annotator "TA"]
[PlyCount "124"]
[EventDate "2024.01.08"]
[EventType "tourn"]
[EventCountry "ARM"]
[SourceTitle "playchess.com"]
[Source "ChessBase"]
[SourceQuality "1"]
[TimeControl "40/5400+30:1800+30"]

{[%evp 9,124,0,24,24,27,20,21,13,18,0,21,23,35,27,34,14,18,15,26,24,24,24,37,25,30,35,28,5,39,13,15,15,15,0,0,0,0,-19,-4,-4,-4,-6,0,-11,0,0,0,0,0,0,0,-26,-25,-26,-25,-24,-17,-24,-22,-24,-20,-24,-20,-48,-48,-112,-116,-129,-94,-127,-104,-129,-96,-96,-96,-96,-96,-96,-96,-465,-515,-504,-493,-1219,-1118,-1330,-2010,-781,-577,-29962,-29963,-29961,-29962,-29961,-29962,-29963,-29964,-29969,-29970,-29971,-29972,-29977,-29978,-29980,-29981,-29981,-29982,-29982,-29982,-29982,-29983,-29983,-29984,-29984,-29985,-29985,-29985]} 1. d4 {[%emt 0:00:45]} Nf6 {[%emt 0:00:09]} 2. c4 {[%emt 0:00:05]} e6 {[%emt 0:00:05]} 3. Nf3 {[%emt 0:00:05]} d5 {[%emt 0:00:04]} 4. g3 {[%emt 0:00:04]} Bb4+ {[%emt 0:00:12]} 5. Bd2 {[%emt 0:00:06]} Bd6 {[%emt 0:00:05]} 6. Bg2 {[%emt 0:00:38] E01: Catalan: Early deviations.} c6 {[%emt 0:00:19]} 7. Qc2 {[%emt 0:02:25]} Nbd7 {[%emt 0:00:08]} 8. O-O {[%emt 0:05:26] The position is equal.} O-O {[%emt 0:00:14]} 9. Bg5 {[%emt 0:02:38] 9.b3 is a critical line.} h6 {[%emt 0:06:11]} 10. Bxf6 {[%emt 0:00:06]} Qxf6 {[%emt 0:00:13]} (10... Nxf6 {simplifies} 11. Nbd2 b6 12. e4 Be7) 11. Nbd2 {[%emt 0:08:52]} c5 {[%emt 0:02:49]} 12. dxc5 {[%emt 0:04:41]} Nxc5 {[%emt 0:00:19]} 13. b4 {[%emt 0:00:07] [#]} Nd7 $146 {[%emt 0:04:17]} ({Predecessor:} 13... Ne4 14. Nxe4 dxe4 15. Qxe4 Bxb4 16. Rab1 Bd6 17. Rfd1 Qe7 18. Ne5 Qc7 19. Nd3 Rb8 {½-½ Xiang,Z (2440)-Oboladze,L (2295) Prague op-A 18th 2019 (3)}) 14. Rab1 {[%emt 0:03:27]} a5 {[%emt 0:01:01]} 15. bxa5 {[%emt 0:02:56]} Rxa5 {[%emt 0:00:17]} 16. Rfd1 {[%emt 0:02:35][%cal Bf1d1,Bd1d4,Bd4c4][%mdl 32]} Nc5 {[%emt 0:01:44]} 17. Nb3 {[%emt 0:01:25]} Nxb3 {[%emt 0:00:50]} 18. axb3 {[%emt 0:01:52]} Bb4 {[%emt 0:01:27]} 19. Rd4 {[%emt 0:07:29]} (19. Ne1 $5 {[%cal Re1d3]}) 19... Rc5 {[%emt 0:04:08]} 20. Qd3 {[%emt 0:07:32]} dxc4 {[%emt 0:01:14]} 21. Rxc4 {[%emt 0:00:35]} (21. bxc4 {simplifies} Ba5 22. Nd2 Bxd2 23. Qxd2 Qe7 24. Qd3) 21... Rd8 {[%emt 0:00:43]} (21... Rxc4 {simplifies} 22. Qxc4 Be7 23. Ne1 Rd8) 22. Qc2 {[%emt 0:01:11]} b6 {[%emt 0:01:50]} 23. Rd1 {[%emt 0:03:25]} Rxd1+ {[%emt 0:01:09]} 24. Qxd1 {[%emt 0:00:05]} Rxc4 {[%emt 0:00:35]} 25. bxc4 {[%emt 0:00:04]} Bc5 {[%emt 0:00:08]} 26. h4 {[%emt 0:02:14]} g6 {[%emt 0:08:35]} 27. e3 {[%emt 0:00:45]} Kg7 {[%emt 0:00:10]} 28. Nd4 {[%emt 0:02:07]} Qe5 {[%emt 0:09:38]} 29. Nb3 {[%emt 0:00:59]} Be7 {[%emt 0:01:17]} 30. Qd4 {[%emt 0:00:42]} Qxd4 {[%emt 0:00:07]} 31. Nxd4 $11 {[%emt 0:00:04][%mdl 4096] Endgame KBB-KBN} f5 {[%emt 0:00:36]} 32. Nb5 {[%emt 0:00:21]} Kf6 {[%emt 0:00:29]} 33. Kf1 {[%emt 0:02:24]} Bd7 {[%emt 0:00:47]} 34. Ke2 {[%emt 0:00:09]} Bc5 {[%emt 0:00:07]} 35. Bb7 {[%emt 0:02:30]} e5 {[%emt 0:01:42]} 36. f3 {[%emt 0:01:42]} f4 {[%emt 0:02:31]} 37. Nc3 {[%emt 0:04:10]} (37. exf4 $15 exf4 38. gxf4) 37... fxg3 $17 {[%emt 0:00:47]} (37... fxe3 $6 38. Ne4+ Ke7 39. Nxc5 bxc5 40. Be4 $11) 38. Ne4+ {[%emt 0:00:04]} Kg7 {[%emt 0:00:09]} 39. Nxg3 {[%emt 0:04:40]} Be8 {[%emt 0:06:15]} 40. Kf2 {[%emt 0:00:00]} Bf7 {[%emt 0:00:00]} 41. Ba6 {[%emt 0:23:22]} Be7 {[%emt 0:19:51]} 42. h5 {[%emt 0:00:10][%mdl 64] Deflection} gxh5 {[%emt 0:11:23]} 43. Nf5+ {[%emt 0:00:19]} Kf6 {[%emt 0:00:10]} 44. Nxe7 {[%emt 0:00:06][%mdl 8192] This move loses the game for White.} (44. Nxh6 $17 Be6 45. e4) 44... Kxe7 {[%emt 0:00:02] KB-KB} 45. Kg3 {[%emt 0:00:05] [#]} Kd6 $1 {[%emt 0:00:07]} 46. Kh4 {[%emt 0:00:05]} (46. f4 $142 Ke6 47. Bb7) 46... Kc5 $19 {[%emt 0:00:41]} 47. f4 {[%emt 0:00:04]} exf4 {[%emt 0:05:04]} (47... Bxc4 48. Bxc4 exf4 49. exf4 Kxc4 50. f5 Kc3 51. f6 b5 52. Kxh5) 48. exf4 {[%emt 0:00:05] [#]} Kd4 $1 {[%emt 0:00:03][%cal Od4e3] And now ...Ke3! would win.} (48... Bxc4 49. Bxc4 Kd4 50. Be6 Kd3 51. Kxh5 Ke4 52. f5 (52. Kxh6 Kxf4 53. Kh7 Kg5 $11) 52... Ke5 53. Kg6) 49. f5 {[%emt 0:00:05]} Ke4 {[%emt 0:00:11] Black mates.} (49... Bxc4 50. Bxc4 Ke5 51. Be6 (51. Kxh5 Kxf5 52. Kxh6 Kg4 $11) 51... Kf6 52. Kxh5 Ke5 53. Kxh6 Kf6 54. Kh5) 50. Bc8 {[%emt 0:00:14]} Ke5 {[%emt 0:00:04]} ({Not} 50... Bxc4 51. Be6 $11) 51. Bd7 {[%emt 0:00:23] Wards off Be8} Kf6 $1 {[%emt 0:00:05]} ({And not} 51... Bxc4 52. Kxh5 Kf6 53. Kxh6 $17) 52. Bc8 {[%emt 0:00:08]} Bxc4 {[%emt 0:00:14]} 53. Kxh5 {[%emt 0:00:03]} b5 {[%emt 0:00:09]} 54. Bd7 {[%emt 0:06:31]} b4 {[%emt 0:00:08]} 55. Ba4 {[%emt 0:00:04]} Kxf5 {[%emt 0:00:09]} 56. Kxh6 {[%emt 0:00:04]} Ke4 {[%emt 0:00:07]} 57. Kg5 {[%emt 0:00:04]} Kd4 {[%emt 0:00:08]} 58. Kf4 {[%emt 0:00:15]} Kc3 {[%emt 0:00:06]} 59. Ke3 {[%emt 0:03:12]} Bd3 {[%emt 0:00:16]} 60. Be8 {[%emt 0:01:29]} b3 {[%emt 0:00:13][%cal Bb4b3,Bb3b2][%mdl 32]} 61. Bf7 {[%emt 0:00:04]} b2 {[%emt 0:00:04]} 62. Ba2 {[%emt 0:00:04]} Bg6 {[%emt 0:00:00][%mdl 32768] Weighted Error Value: White=0.32/Black=0.05 (flawless) . Loss on time!?} ({Weaker is} 62... b1=B 63. Bxb1 $11) 1-0

[Event "14th Margaryan Memorial-GM 2024"]
[Site "Yerevan"]
[Date "2024.01.16"]
[Round "9.5"]
[White "Shuvalova, Polina"]
[Black "Movahed, Sina"]
[Result "0-1"]
[ECO "B67"]
[WhiteElo "2475"]
[BlackElo "2450"]
[Annotator "TA"]
[PlyCount "142"]
[EventDate "2024.01.08"]
[EventType "tourn"]
[EventCountry "ARM"]
[SourceTitle "playchess.com"]
[Source "ChessBase"]
[SourceQuality "1"]
[TimeControl "40/5400+30:1800+30"]

{[%evp 20,142,29,33,26,35,23,23,64,53,70,61,44,37,29,29,18,21,9,8,18,0,-8,-8,-11,-13,14,16,93,68,63,76,64,60,110,118,104,22,137,137,127,39,100,78,85,-4,74,-10,0,-11,-11,-11,-12,-10,20,-86,-75,-79,-32,-31,0,0,116,17,102,0,91,86,150,127,158,157,108,0,0,0,0,0,7,0,0,0,0,0,0,0,182,182,177,36,27,19,66,31,395,118,83,0,257,210,485,454,415,24,122,101,110,57,58,58,52,8,6,20,394,-117,0,-80,-59,-137,-77,-29997,-29998,-29998,-29999]} 1. e4 {[%emt 0:00:02]} c5 {[%emt 0:12:21]} 2. Nf3 {[%emt 0:00:03]} d6 {[%emt 0:00:13]} 3. d4 {[%emt 0:00:04]} cxd4 {[%emt 0:00:06]} 4. Nxd4 {[%emt 0:00:02]} Nf6 {[%emt 0:00:07]} 5. Nc3 {[%emt 0:00:03]} Nc6 {[%emt 0:00:05]} 6. Bg5 {[%emt 0:00:12]} e6 {[%emt 0:00:10]} 7. Qd2 {[%emt 0:00:41]} a6 {[%emt 0:00:07]} 8. O-O-O {[%emt 0:00:31]} Bd7 {[%emt 0:00:49]} 9. f4 {[%emt 0:00:36]} h6 {[%emt 0:00:07] 9...Be7 is becoming the main line.} 10. Bh4 {[%emt 0:06:37]} Be7 {[%emt 0:00:08]} 11. Nf3 {[%emt 0:00:46]} Qc7 {[%emt 0:00:14] B67: Sicilian: Richter-Rauzer: 7...a6 8 0-0-0 Bd7, lines without 9 f4 Be7.} 12. Kb1 {[%emt 0:05:47]} b5 {[%emt 0:00:15] [#]} 13. e5 $1 {[%emt 0:09:15]} dxe5 {[%emt 0:00:06] White has an edge.} 14. fxe5 {[%emt 0:00:28]} Nd5 {[%emt 0:00:06]} 15. Nxd5 {[%emt 0:01:09]} exd5 {[%emt 0:00:11]} 16. Bxe7 {[%emt 0:04:39]} Nxe7 {[%emt 0:00:25] [#]} 17. Bd3 $146 {[%emt 0:00:27]} ({Predecessor:} 17. Qb4 Rc8 18. Bd3 Nc6 19. Qc5 Be6 20. Rhf1 Qe7 21. Qg1 O-O 22. g4 Nb4 23. Nd4 Nxd3 24. Rxd3 {½-½ Balutescu,M (2346)-Jimenez Ariza,J (2371) Champion's League 2021/B2 email}) 17... Nc6 {[%emt 0:00:27] Dodges Nd4} 18. Qf4 {[%emt 0:02:44]} (18. c3 {simplifies} O-O 19. Bc2 Nxe5 20. Qxd5 Nxf3 21. Qxd7 Qxd7 22. Rxd7 Ne5 23. Rd4) 18... O-O {[%emt 0:00:23]} 19. Rhe1 {[%emt 0:03:30]} Rae8 {[%emt 0:00:32]} 20. Qg3 {[%emt 0:10:57]} (20. c3 $5) 20... Re7 {[%emt 0:01:19]} 21. Re2 {[%emt 0:07:10]} Rfe8 {[%emt 0:04:40]} 22. Rde1 {[%emt 0:00:05]} Qb8 {[%emt 0:01:37]} (22... Nb4 {with more complications.} 23. Qf4 Qa5 24. a3 Nxd3 25. cxd3 Qb6) 23. Qf4 {[%emt 0:07:20]} a5 {[%emt 0:07:45]} (23... Kh8 $11) 24. g4 $1 $16 {[%emt 0:01:18]} f6 {[%emt 0:20:45][%cal Rf6e5]} 25. Bg6 {[%emt 0:00:12]} fxe5 {[%emt 0:01:14]} 26. Qd2 {[%emt 0:01:01]} Rf8 {[%emt 0:07:47]} (26... Qd6 $1 $14 27. Bxe8 Rxe8) 27. Qxd5+ {[%emt 0:00:37]} Kh8 {[%emt 0:00:06]} 28. Bf5 {[%emt 0:05:24]} (28. Nxe5 $2 Rxe5 29. Rxe5 Nxe5 $19) (28. Be4 $16) 28... Qe8 {[%emt 0:02:15]} (28... Bxf5 $11 {remains equal.} 29. gxf5 Rf6) 29. Nh4 $1 {[%emt 0:06:16]} (29. Qxb5 $6 Rxf5 30. gxf5 Nd4 $11) (29. Nxe5 Bxf5 30. gxf5 (30. Qxc6 $2 Qxc6 31. Nxc6 Rxe2 $19) 30... Rxf5 $17) 29... Rf6 {[%emt 0:01:08] Wards off Ng6+} 30. a3 {[%emt 0:07:36]} (30. Qxb5 g6 31. Bxd7 Qxd7) ({White should try} 30. Rd2 $16 {[%cal Rf5d7]} Be6 31. Bxe6 (31. Qxb5 Bxa2+ 32. Kc1 Bf7 $14) 31... Rexe6 32. Qxb5) 30... g6 {[%emt 0:03:20]} (30... b4 $14) 31. Bd3 {[%emt 0:06:38]} b4 {[%emt 0:00:55]} 32. a4 {[%emt 0:06:19]} (32. Qe4 $16) 32... Kg7 {[%emt 0:05:45]} (32... Bxg4 $11 33. Rf2 Ree6 34. Rxf6 Rxf6) 33. h3 {[%emt 0:01:13] [#]} (33. Re3 $16) 33... b3 $1 $11 {[%emt 0:05:36]} 34. cxb3 {[%emt 0:00:41]} (34. Qxb3 Nd4 35. Bxg6 Rxg6 36. Nxg6 Nxb3 37. Nxe7 Qxe7 $17) 34... Nb4 {[%emt 0:00:43]} 35. Qe4 {[%emt 0:00:07]} (35. Qxa5 $2 Nxd3 36. Rd1 e4 $19) 35... Bc6 {[%emt 0:01:28] Some like it hot} 36. Qe3 {[%emt 0:00:11]} Rd6 {[%emt 0:01:05]} 37. Be4 {[%emt 0:01:27]} (37. Bxg6 $11 Rxg6 38. Nf5+ Kh8 39. Qc3 (39. Nxe7 Qxe7 40. Qc3 Rd6 $11)) 37... Bxe4+ $17 {[%emt 0:05:23]} 38. Qxe4 {[%emt 0:00:04]} Qf7 {[%emt 0:00:14]} ({Black should play} 38... Red7 $17 {( -> ...Rd1+)} 39. Rc1 (39. Qxe5+ Qxe5 40. Rc1 Qxe2 41. Nf5+ gxf5 42. gxf5 Rd1 43. f6+ Kxf6 44. h4 Rxc1+ {[%mdl 64] Back Rank} 45. Kxc1 Qf1#) 39... Rd4) 39. Re3 $1 $15 {[%emt 0:01:11][%cal Be2e3,Be3c3,Bc3c8][%mdl 32]} Rf6 {[%emt 0:01:57][%mdl 1024] Black has compensation.} (39... Qf2 {is interesting.} 40. Ng2 Rd3 41. R3e2 Qf6) 40. Nf3 {[%emt 0:00:00]} Rd6 {[%emt 0:00:00]} (40... Nd5 $11) 41. h4 {[%emt 0:21:52]} (41. Nxe5 $16 Qd5 42. Qxd5 Rxd5 43. Nc4 Rxe3 44. Nxe3) 41... Rd5 {[%emt 0:31:38]} (41... Red7 $1 $11 42. Rc1 (42. Nxe5 $2 Rd1+ {[%mdl 64] Back Rank} 43. Rxd1 Rxd1#) (42. Qxe5+ Kh7 $15) 42... Re7) 42. Rc1 {[%emt 0:02:04]} (42. h5 $16) 42... Qf6 {[%emt 0:01:15] Prevents} (42... Rc7 $11 43. Rxc7 (43. Nxe5 Rxc1+ 44. Kxc1 Qf6 $11) (43. Rec3 Rxc3 44. bxc3 Rd3 $11) 43... Qxc7) 43. h5 $16 {[%emt 0:00:31][%cal Of3h4]} g5 {[%emt 0:00:59] Inhibits Nh4.} (43... Rd6 $142) 44. Rec3 $1 {[%emt 0:01:17][%cal Oc3c6]} Qd6 {[%emt 0:00:37] Dodges Rc6} 45. Rc8 {[%emt 0:03:31][%cal Of3g5] Threatening mate with Nxg5!} Rd1 {[%emt 0:01:25]} 46. Rxd1 {[%emt 0:02:56]} (46. Ne1 $1 $16) 46... Qxd1+ $11 {[%emt 0:00:12]} 47. Rc1 {[%emt 0:00:02]} Qd3+ {[%emt 0:03:58]} 48. Qxd3 {[%emt 0:00:04]} Nxd3 {[%emt 0:00:05][%mdl 4096] Endgame KRN-KRN} 49. Rc4 {[%emt 0:02:22]} e4 {[%emt 0:02:59]} 50. Nd4 {[%emt 0:00:08]} Kf6 {[%emt 0:00:17]} 51. Kc2 {[%emt 0:01:00]} Rd7 {[%emt 0:01:01]} 52. Nc6 {[%emt 0:04:47]} e3 {[%emt 0:03:27]} (52... Ne1+ $11 {and Black is okay.} 53. Kb1 Nf3) 53. Re4 $1 $18 {[%emt 0:00:38]} Ne1+ {[%emt 0:00:17]} 54. Kc3 {[%emt 0:00:51]} (54. Kb1 $18) 54... Rc7 $14 {[%emt 0:00:30]} 55. Rc4 {[%emt 0:00:44]} Ng2 {[%emt 0:02:20]} (55... Rd7 $11 56. Nd4 (56. Nxa5 $2 Rd3+ 57. Kb4 e2 $19) 56... Ng2) 56. Kd3 {[%emt 0:00:11]} (56. Nxa5 $2 Rxc4+ 57. Kxc4 e2 $19) (56. Nd4 $5 {[%cal Rc4c7]} Rd7 57. b4 $14) 56... Rf7 $2 {[%emt 0:01:38][%mdl 8192]} (56... Rc8 $1 $14) 57. Re4 $2 {[%emt 0:00:38]} (57. Nxa5 $2 Rd7+ 58. Kc2 (58. Ke2 $2 Rd2+ 59. Kf3 e2 $19) 58... e2 $19) (57. b4 $1 $18 {and the rest is easy.}) 57... Rc7 $16 {[%emt 0:01:06]} 58. Rc4 {[%emt 0:00:35]} (58. Nxa5 Rd7+ 59. Kc3 Nf4 $14) (58. Nd4 $1 $16) 58... Rd7+ $2 {[%emt 0:00:57][%mdl 8192]} (58... Rf7 $11) 59. Rd4 $18 {[%emt 0:00:44]} Rb7 {[%emt 0:00:47]} (59... Rc7) 60. Rd6+ {[%emt 0:00:25]} (60. Nxa5 $2 Re7 61. Ke2 (61. Rd6+ $2 Kf7 $19) 61... Nf4+ 62. Ke1 e2 63. Rd6+ Kf7 $19) 60... Kg7 {[%emt 0:00:06]} 61. Nd4 $2 {[%emt 0:00:31]} (61. Nxa5 $2 Re7 62. Nc6 (62. Rg6+ $2 Kh7 $19) 62... e2 63. Nxe7 (63. Rg6+ $2 Kh7 $19) 63... e1=Q 64. Nf5+ Kf7 $19) (61. Rg6+ Kh7 62. Rd6 (62. Nxa5 $2 Re7 $19) 62... Rxb3+ 63. Kc2 (63. Ke2 $2 Nf4+ 64. Kf1 e2+ 65. Ke1 Rxb2 $19) 63... Rb6 64. Rd7+ Kg8 $15) (61. b4 $1 $18) 61... Kg8 {[%emt 0:00:49]} (61... Rb8 $1 $11 {keeps the balance.}) 62. Rxh6 {[%emt 0:01:11]} Re7 {[%emt 0:00:16] Hoping for ...Nf4+.} 63. Rg6+ {[%emt 0:00:21]} (63. Rc6 $16) 63... Kh7 $14 {[%emt 0:00:12] And now ...Nf4+ would win.} 64. Rxg5 {[%emt 0:00:15][%cal Od4e2] Ne2! would be deadly.} Nf4+ $1 {[%emt 0:00:17]} 65. Kc2 {[%emt 0:01:25] aiming for Rf5.} (65. Kc4 $5 {[%cal Rg5a5]} Re4 66. Kc3 $16 (66. Rxa5 $2 e2 $19)) 65... Rc7+ $1 {[%emt 0:00:37]} 66. Kb1 {[%emt 0:00:10] Strongly threatening Rf5.} ({Not} 66. Kd1 $2 Rd7 67. Re5 Rxd4+ 68. Kc2 Rd2+ 69. Kc3 Nd5+ 70. Kc4 e2 $19) 66... Nd3 $2 {[%emt 0:00:53][%mdl 8192]} (66... Rd7 $11 {and Black has nothing to worry.} 67. Ne6 Nxe6) 67. Rxa5 $2 {[%emt 0:00:47]} ({White must play} 67. Ne2 $1 $18) 67... Rc1+ $17 {[%emt 0:00:28]} 68. Ka2 {[%emt 0:00:01][%cal Ob3b4] [#] b4! is the strong threat.} e2 $1 {[%emt 0:00:02] Black is more active.} 69. Ra7+ {[%emt 0:00:34] [#]} (69. Nxe2 $2 {gets mated.} Nb4+ 70. Ka3 Nc2+ 71. Ka2 Ra1#) (69. Re5 $1 $15 e1=Q 70. Rxe1 Rxe1 71. b4) 69... Kh6 {[%emt 0:00:26]} ({Better is} 69... Kg8 $1 70. Re7 (70. Nxe2 $2 {leads to mate.} Nb4+ 71. Ka3 Nc2+ 72. Ka2 Ra1#) 70... e1=Q 71. Rxe1 Rxe1) 70. Nxe2 $4 {[%emt 0:00:54][%mdl 8192]} (70. Re7 $17 e1=Q 71. Rxe1 Rxe1 72. b4) 70... Nb4+ {[%emt 0:00:03]} 71. Ka3 {[%emt 0:00:01]} Nc2+ {[%emt 0:00:01] Both players deserved the win here. A cool game by Movahed.   Weighted Error Value: White=0.31/Black=0.47} 0-1